bitfinex/quotes_SOLUSD_20220114
["timestamp","ask_amount","ask_price","bid_price","bid_amount"]
[1642194753701,24.3622,146.76,146.68,22.6634]
[1642194754101,24.3622,146.76,146.68,22.9134]
[1642194754302,26.77794898,146.75,146.68,33.1353]
[1642194754502,26.77794898,146.75,146.69,2.726]
[1642194755600,26.77794898,146.75,146.69,13.4573]
[1642194755801,24.3622,146.76,146.69,19.4573]
[1642194758604,29.45390697,146.77,146.69,19.4573]
[1642194763210,29.45390697,146.77,146.69,87.4273]
[1642194763609,22.5791,146.78,146.69,87.4273]
[1642194764816,33.15516751,146.8,146.69,97.1073]
[1642194765012,33.15516751,146.8,146.7,24.9141]
[1642194765211,33.15516751,146.8,146.75,10.2167]
[1642194765612,33.15516751,146.8,146.75,16.7267]
[1642194766814,30.42916751,146.8,146.75,16.7267]
[1642194767415,30.42916751,146.8,146.75,10.7267]
[1642194767611,30.42916751,146.8,146.75,16.7267]
[1642194768012,2.725,146.79,146.75,0.25]
[1642194768414,25.6948,146.79,146.72,29.5369]
[1642194768612,2.725,146.79,146.73,2.725]
[1642194768812,30.42916751,146.8,146.72,6.26]
[1642194769014,30.42916751,146.8,146.73,12.943]
[1642194769212,3.46258276,146.83,146.73,12.943]
[1642194769412,3.46258276,146.83,146.73,42.3843]
[1642194769840,6.18758276,146.84,146.73,42.3843]
[1642194770040,23.9083,146.83,146.73,42.6343]
[1642194770241,29.67501489,146.81,146.73,42.6343]
[1642194771644,23.8359,146.8,146.73,42.6343]
[1642194771845,23.8359,146.8,146.73,39.9093]
[1642194776149,24.0959,146.8,146.73,39.9093]
[1642194781458,24.0959,146.8,146.73,16.728]
[1642194781856,24.0959,146.8,146.73,6.51]
[1642194782458,26.8209,146.8,146.73,6.51]
[1642194782658,26.8209,146.8,146.73,0.51]
[1642194782860,26.8209,146.8,146.73,6.51]
[1642194784264,26.8209,146.8,146.73,0.51]
[1642194784562,26.8209,146.8,146.73,6.0]
[1642194785067,26.8209,146.8,146.73,0.51]
[1642194785471,26.8209,146.8,146.73,0.25]
[1642194786071,26.8209,146.8,146.72,26.7572]
[1642194795308,26.8209,146.8,146.72,16.469]
[1642194796606,26.8209,146.8,146.72,16.729]
[1642194797306,24.0959,146.8,146.72,16.729]
[1642194797507,24.0959,146.8,146.72,16.469]
[1642194798510,23.8359,146.8,146.72,16.729]
[1642194798910,23.8359,146.8,146.72,16.469]
[1642194799509,23.8359,146.8,146.72,0.25]
[1642194800012,24.0959,146.8,146.7,36.7246]
[1642194800811,23.5959,146.8,146.7,36.9846]
[1642194801111,23.8459,146.8,146.7,36.9846]
[1642194801309,2.725,146.79,146.7,36.9846]
[1642194801909,24.3099,146.78,146.7,36.9846]
[1642194803208,24.3099,146.78,146.7,34.2596]
[1642194803608,24.3099,146.78,146.7,40.2596]
[1642194804410,24.3099,146.78,146.71,2.725]
[1642194804608,24.3099,146.78,146.71,12.9448]
[1642194804809,24.3099,146.78,146.71,19.4548]
[1642194805510,24.3099,146.78,146.71,13.4548]
[1642194805810,24.5699,146.78,146.71,10.7298]
[1642194807914,0.26,146.78,146.71,10.7298]
[1642194808315,2.975,146.8,146.71,10.7298]
[1642194809317,3.235,146.8,146.71,16.7298]
[1642194809516,3.235,146.8,146.71,13.4548]
[1642194810417,52.38521489,146.81,146.71,13.4548]
[1642194810618,52.38521489,146.81,146.72,24.3936]
[1642194810819,52.38521489,146.81,146.74,10.2173]
[1642194811117,52.38521489,146.81,146.74,16.7273]
[1642194812720,52.38521489,146.81,146.74,16.4773]
[1642194813019,52.38521489,146.81,146.74,0.26]
[1642194813218,52.38521489,146.81,146.72,43.5971]
[1642194814023,52.38521489,146.81,146.72,43.8471]
[1642194818128,23.1606,146.8,146.72,43.8471]
[1642194819828,23.1606,146.8,146.72,53.8122]
[1642194820427,23.1606,146.8,146.72,121.7822]
[1642194820828,23.1606,146.8,146.73,9.68]
[1642194821029,23.1606,146.8,146.76,10.2164]
[1642194821429,23.1606,146.8,146.76,16.7264]
[1642194822253,23.1606,146.8,146.76,6.26]
[1642194822453,23.1606,146.8,146.74,8.725]
[1642194822655,25.8856,146.8,146.74,6.0]
[1642194822951,25.8856,146.8,146.73,15.68]
[1642194823754,25.8856,146.8,146.73,25.8976]
[1642194823954,25.8856,146.8,146.73,26.4076]
[1642194824155,23.1606,146.8,146.73,26.4076]
[1642194826464,25.8856,146.8,146.73,26.4076]
[1642194829865,2.725,146.8,146.73,26.4076]
[1642194830066,2.725,146.8,146.75,67.97]
[1642194830264,2.725,146.8,146.77,10.2151]
[1642194830466,2.725,146.8,146.77,16.7251]
[1642194830663,2.725,146.8,146.78,0.50364234]
[1642194830863,2.725,146.8,146.77,16.7251]
[1642194831365,2.725,146.8,146.77,6.51]
[1642194831566,2.725,146.8,146.77,0.51]
[1642194831765,2.725,146.8,146.77,6.51]
[1642194831964,2.725,146.8,146.78,0.50364234]
[1642194832164,5.56075759,146.79,146.77,6.51]
[1642194832364,5.56075759,146.79,146.77,0.51]
[1642194832567,29.67501489,146.81,146.77,6.25]
[1642194832965,29.67501489,146.81,146.77,0.51]
[1642194833165,29.67501489,146.81,146.77,6.51]
[1642194833367,29.67501489,146.81,146.77,0.51]
[1642194833568,29.67501489,146.81,146.76,9.235]
[1642194833866,29.67501489,146.81,146.76,6.51]
[1642194834266,29.67501489,146.81,146.76,0.51]
[1642194834468,29.67501489,146.81,146.74,19.4512]
[1642194834666,29.67501489,146.81,146.74,29.1312]
[1642194835666,29.67501489,146.81,146.74,18.915]
[1642194836067,23.9505,146.8,146.74,12.405]
[1642194836266,2.725,146.79,146.74,2.725]
[1642194836467,2.975,146.79,146.7,3.89795752]
[1642194836667,22.826,146.78,146.7,3.89795752]
[1642194836870,2.725,146.77,146.7,3.89795752]
[1642194837068,2.975,146.77,146.7,3.89795752]
[1642194837567,2.975,146.77,146.67,10.0916]
[1642194837772,22.6037,146.76,146.67,16.0916]
[1642194838069,33.24998338,146.75,146.67,16.3416]
[1642194838569,33.24998338,146.75,146.67,26.5731]
[1642194838770,30.52398338,146.75,146.67,29.2991]
[1642194839776,30.52398338,146.75,146.67,97.2691]
[1642194839974,30.52398338,146.75,146.67,97.5191]
[1642194840806,30.52398338,146.75,146.71,0.31310014]
[1642194841174,30.52398338,146.75,146.71,11.91917588]
[1642194841376,30.52398338,146.75,146.71,10.2184]
[1642194841680,30.52398338,146.75,146.71,16.7284]
[1642194842479,30.52398338,146.75,146.71,18.62933721]
[1642194843180,30.52398338,146.75,146.72,1.90093721]
[1642194843380,2.726,146.8,146.72,12.11933721]
[1642194843580,2.986,146.8,146.72,18.62933721]
[1642194843782,2.726,146.8,146.72,86.59933721]
[1642194844180,2.726,146.8,146.72,18.62933721]
[1642194844384,30.78851686,146.79,146.72,18.62933721]
[1642194846781,30.78851686,146.79,146.72,18.36933721]
[1642194846983,30.78851686,146.79,146.72,28.04933721]
[1642194847383,2.726,146.8,146.72,28.04933721]
[1642194847584,1.94421262,146.81,146.72,28.04933721]
[1642194848187,1.94421262,146.81,146.72,28.30933721]
[1642194848411,30.7790796,146.82,146.75,1.90093721]
[1642194848611,30.7790796,146.82,146.77,10.2143]
[1642194849011,30.7790796,146.82,146.77,16.7243]
[1642194849912,30.7790796,146.82,146.77,6.51]
[1642194850113,30.7790796,146.82,146.77,6.25]
[1642194850317,30.7790796,146.82,146.77,0.25]
[1642194850519,30.7790796,146.82,146.75,21.09053721]
[1642194850715,30.7790796,146.82,146.75,18.36653721]
[1642194851415,30.7790796,146.82,146.75,16.4656]
[1642194852013,31.0290796,146.82,146.73,2.725]
[1642194852216,2.725,146.81,146.7,14.30593721]
[1642194852413,2.725,146.81,146.7,11.58093721]
[1642194852616,2.975,146.81,146.7,11.58093721]
[1642194853113,22.6903,146.8,146.7,11.58093721]
[1642194853316,2.725,146.79,146.7,11.84093721]
[1642194853515,2.975,146.79,146.7,15.94]
[1642194854518,2.975,146.79,146.7,6.51]
[1642194854718,2.975,146.79,146.7,0.25]
[1642194854916,8.434,146.79,146.7,0.25]
[1642194855116,8.434,146.79,146.69,0.25]
[1642194855417,23.5285,146.78,146.69,0.25]
[1642194855616,2.726,146.77,146.69,67.97]
[1642194855817,23.5285,146.78,146.69,67.97]
[1642194855818,30.1939339,146.76,146.7,2.726]
[1642194856017,30.1939339,146.76,146.7,8.976]
[1642194856217,30.1939339,146.76,146.7,19.4555]
[1642194858022,30.1939339,146.76,146.7,8.986]
[1642194858423,30.1939339,146.76,146.7,6.26]
[1642194858923,30.1939339,146.76,146.7,0.26]
[1642194859123,30.1939339,146.76,146.7,6.26]
[1642194859524,30.1939339,146.76,146.7,0.51]
[1642194859823,30.1939339,146.76,146.7,6.51]
[1642194860423,30.1939339,146.76,146.7,0.51]
[1642194860626,30.1939339,146.76,146.7,6.25]
[1642194860930,30.1939339,146.76,146.7,19.4558]
[1642194864529,30.1939339,146.76,146.7,16.7298]
[1642194866036,30.1939339,146.76,146.7,84.6998]
[1642194866231,30.1939339,146.76,146.7,94.3798]
[1642194867080,30.1939339,146.76,146.71,6.74235576]
[1642194867230,30.1939339,146.76,146.73,10.2173]
[1642194867530,2.726,146.77,146.73,16.7273]
[1642194868637,23.33541979,146.78,146.73,16.7273]
[1642194870234,23.33541979,146.78,146.74,6.74235576]
[1642194870434,23.33541979,146.78,146.74,17.21945576]
[1642194870636,23.33541979,146.78,146.74,23.46945576]
[1642194872236,23.33541979,146.78,146.74,25.37039297]
[1642194873942,23.33541979,146.78,146.74,23.46945576]
[1642194877852,23.33541979,146.78,146.74,25.37039297]
[1642194878454,2.725,146.82,146.74,93.34039297]
[1642194878753,27.53961262,146.83,146.74,93.34039297]
[1642194878955,27.53961262,146.83,146.74,25.37039297]
[1642194879153,2.725,146.83,146.75,89.76623721]
[1642194879356,1.94421262,146.84,146.75,92.49023721]
[1642194879553,1.94421262,146.84,146.75,99.00023721]
[1642194879554,24.40205396,146.83,146.75,99.00023721]
[1642194879754,24.40205396,146.83,146.76,6.74235576]
[1642194879954,27.12605396,146.83,146.76,13.25235576]
[1642194880153,27.12605396,146.83,146.76,15.15329297]
[1642194880759,27.12605396,146.83,146.76,14.90329297]
[1642194880958,27.37605396,146.83,146.76,14.90329297]
[1642194881158,27.12605396,146.83,146.76,14.90329297]
[1642194881357,27.37605396,146.83,146.76,13.00235576]
[1642194881558,27.12605396,146.83,146.76,7.00235576]
[1642194881960,27.37605396,146.83,146.76,13.25235576]
[1642194882176,29.07026658,146.83,146.76,13.25235576]
[1642194883378,29.07026658,146.83,146.76,12.99235576]
[1642194883581,26.34626658,146.83,146.76,12.99235576]
[1642194884882,26.34626658,146.83,146.76,13.25235576]
[1642194885979,26.34626658,146.83,146.76,15.97635576]
[1642194886381,24.40205396,146.83,146.76,15.97635576]
[1642194887179,24.40205396,146.83,146.76,15.71635576]
[1642194888782,24.40205396,146.83,146.76,25.93145576]
[1642194889683,24.40205396,146.83,146.76,95.80239297]
[1642194889883,24.40205396,146.83,146.76,96.06239297]
[1642194890484,24.40205396,146.83,146.76,105.74239297]
[1642194890984,24.40205396,146.83,146.76,27.55729297]
[1642194891285,48.63248059,147.02,146.86,81.78125]
[1642194891486,14.55248059,147.02,146.93,0.30489903]
[1642194891785,0.0072469,146.99,146.98,0.31999109]
[1642194891987,0.00732749,147.02,146.99,81.0]
[1642194892185,38.17088761,147.05,147.0,130.68]
[1642194892388,7.96435992,147.05,147.01,0.31242036]
[1642194892585,7.96435992,147.05,147.03,121.0]
[1642194892886,2.72,147.11,147.04,61.68]
[1642194893086,2.72,147.11,147.04,67.93]
[1642194893286,2.719,147.13,147.04,68.19]
[1642194893486,28.71116494,147.1,147.04,80.08757588]
[1642194893686,28.71116494,147.1,147.04,28.08757588]
[1642194893888,81.0,147.09,147.05,9.68]
[1642194894087,1.784971,147.08,147.03,9.68]
[1642194894285,1.784971,147.08,146.99,9.68]
[1642194894286,4.503971,147.08,146.99,9.68]
[1642194895188,4.503971,147.08,147.0,6.74235576]
[1642194895588,4.503971,147.08,147.04,0.04]
[1642194896388,4.763971,147.08,147.04,0.04]
[1642194896789,5.013971,147.08,147.04,0.04]
[1642194898196,4.753971,147.08,147.05,6.74235576]
[1642194899198,5.56075759,147.07,147.05,6.74235576]
[1642194899398,39.719,147.06,147.05,6.74235576]
[1642194899800,66.0,147.05,147.04,5.576e-05]
[1642194900601,68.77855762,147.05,147.04,5.576e-05]
[1642194900839,71.81075759,147.05,147.04,5.576e-05]
[1642194901207,86.81075759,147.05,147.04,5.576e-05]
[1642194901406,164.98415759,147.05,147.04,5.576e-05]
[1642194901811,97.01415759,147.05,147.04,5.576e-05]
[1642194902411,88.01415759,147.05,147.04,5.576e-05]
[1642194902612,82.01415759,147.05,147.04,5.576e-05]
[1642194903111,97.01415759,147.05,147.04,5.576e-05]
[1642194903510,97.01415759,147.05,146.94,15.94]
[1642194903511,81.0,147.04,146.94,6.0]
[1642194903711,10.2064,147.01,146.94,6.0]
[1642194903912,10.2064,147.01,146.92,2.721]
[1642194904112,10.4564,147.01,146.92,2.721]
[1642194904313,10.2064,147.01,146.92,37.79944729]
[1642194904618,0.98277378,147.02,146.95,10.2031]
[1642194904815,0.98277378,147.02,146.96,2.721]
[1642194905911,0.98277378,147.02,146.91,2.721]
[1642194906514,0.98277378,147.02,146.91,4.42177588]
[1642194907212,0.98277378,147.02,146.93,10.2058]
[1642194907415,0.98277378,147.02,146.94,2.721]
[1642194907913,0.98277378,147.02,146.94,2.981]
[1642194908113,0.98277378,147.02,146.94,0.26]
[1642194908335,0.98277378,147.02,146.94,10.465]
[1642194908538,0.98277378,147.02,146.94,10.715]
[1642194909241,0.98277378,147.02,146.95,2.721]
[1642194909439,0.98277378,147.02,146.95,3.231]
[1642194909843,0.98277378,147.02,146.95,10.7146]
[1642194910042,0.98277378,147.02,146.96,2.721]
[1642194910442,0.98277378,147.02,146.97,1.70077588]
[1642194910643,2.721,147.1,146.98,2.721]
[1642194911040,2.721,147.1,146.99,1.70077588]
[1642194911243,2.721,147.1,146.99,11.90197588]
[1642194911442,2.721,147.1,146.99,18.41197588]
[1642194911643,4.19427546,147.09,146.99,18.41197588]
[1642194912443,4.44427546,147.09,146.99,18.41197588]
[1642194912747,4.19427546,147.09,146.99,18.41197588]
[1642194913144,4.19427546,147.09,147.0,11.38077588]
[1642194913345,4.19427546,147.09,147.04,10.1976]
[1642194913544,4.19427546,147.09,147.04,10.7076]
[1642194914457,4.19427546,147.09,147.04,16.7076]
[1642194916952,4.19427546,147.09,147.04,16.4576]
[1642194917352,4.19427546,147.09,147.04,16.1976]
[1642194917553,4.19427546,147.09,147.02,12.9178]
[1642194917855,4.19427546,147.09,147.02,18.9178]
[1642194918454,4.19427546,147.09,147.02,19.1678]
[1642194918852,4.19427546,147.09,147.02,19.4278]
[1642194919253,4.19427546,147.09,147.02,13.4278]
[1642194919453,4.44427546,147.09,147.02,13.4278]
[1642194919856,4.44427546,147.09,147.02,10.7088]
[1642194920056,4.70427546,147.09,147.02,10.7088]
[1642194920653,4.70427546,147.09,147.02,0.25]
[1642194921054,4.70427546,147.09,147.0,20.1302]
[1642194921456,67.97,147.08,147.0,20.1302]
[1642194921655,1.04343039,147.06,147.0,20.1302]
[1642194922256,1.04343039,147.06,147.0,0.25]
[1642194922558,1.04343039,147.06,146.98,16.2016]
[1642194923059,1.04343039,147.06,146.98,16.4616]
[1642194923656,1.04343039,147.06,146.98,16.7116]
[1642194924456,1.29343039,147.06,146.98,16.7116]
[1642194924658,1.04343039,147.06,146.98,16.7116]
[1642194925059,1.04343039,147.06,146.98,16.4516]
[1642194925457,1.04343039,147.06,146.98,16.7116]
[1642194925863,1.04343039,147.06,146.99,2.72]
[1642194926059,1.04343039,147.06,146.99,8.97]
[1642194926460,1.04343039,147.06,146.99,19.4308]
[1642194926659,1.04343039,147.06,146.99,6.51]
[1642194926964,1.04343039,147.06,147.0,2.72]
[1642194927189,26.8359,147.1,147.0,12.4]
[1642194927392,24.1159,147.1,147.01,67.97]
[1642194927591,24.1159,147.1,147.02,9.68]
[1642194927793,22.5795,147.12,147.04,10.1968]
[1642194927991,22.5795,147.12,147.04,16.7068]
[1642194928195,4.92269474,147.11,147.04,6.51]
[1642194928392,7.64169474,147.11,147.04,6.25]
[1642194928596,7.89169474,147.11,147.04,6.25]
[1642194928793,7.64169474,147.11,147.04,0.25]
[1642194928992,7.64169474,147.11,147.04,6.51]
[1642194929494,7.64169474,147.11,147.04,0.51]
[1642194929693,7.64169474,147.11,147.04,6.51]
[1642194929894,7.64169474,147.11,147.04,6.0]
[1642194930093,7.64169474,147.11,147.04,6.51]
[1642194930295,7.64169474,147.11,147.04,0.51]
[1642194930495,4.92269474,147.11,147.04,0.25]
[1642194931094,5.18269474,147.11,147.03,9.229]
[1642194931499,5.18269474,147.11,147.03,19.4266]
[1642194933096,5.43269474,147.11,147.03,9.229]
[1642194933497,2.719,147.1,147.03,9.229]
[1642194933698,2.719,147.1,147.03,3.229]
[1642194934301,2.719,147.1,147.03,13.4268]
[1642194935800,4.92269474,147.11,147.03,13.4268]
[1642194936501,5.17269474,147.11,147.03,13.4268]
[1642194937397,2.719,147.1,147.03,13.4268]
[1642194938403,2.719,147.1,147.03,13.1668]
[1642194938604,2.719,147.1,147.03,0.25]
[1642194939003,2.969,147.1,147.01,10.4486]
[1642194939204,2.969,147.1,147.01,10.1986]
[1642194939402,3.229,147.1,147.01,10.1986]
[1642194939903,13.429,147.1,147.0,9.68]
[1642194940101,13.429,147.1,147.0,15.68]
[1642194940501,13.429,147.1,147.0,16.19]
[1642194941101,13.429,147.1,147.0,12.66]
[1642194941702,13.429,147.1,147.0,20.1398]
[1642194942504,13.429,147.1,147.0,20.3898]
[1642194942704,13.429,147.1,147.0,0.25]
[1642194942906,19.429,147.1,147.0,0.25]
[1642194943106,13.429,147.1,146.98,19.1707]
[1642194943305,13.429,147.1,146.98,2.72]
[1642194943508,30.80977588,147.1,146.98,2.72]
[1642194943706,67.97,147.09,146.98,2.72]
[1642194943907,67.97,147.05,146.98,2.72]
[1642194944108,2.72,147.04,146.98,2.72]
[1642194944307,2.72,147.04,146.94,2.72]
[1642194944508,2.72,147.04,146.95,9.68]
[1642194944708,2.721,147.06,146.96,2.721]
[1642194945106,2.971,147.06,146.96,8.721]
[1642194945707,2.971,147.06,146.96,9.231]
[1642194946416,2.971,147.06,146.98,10.2009]
[1642194946812,2.971,147.06,146.98,10.7109]
[1642194947412,2.721,147.06,146.98,10.7109]
[1642194947812,48.088,147.07,146.98,10.7109]
[1642194948014,50.808,147.07,146.98,10.7109]
[1642194948214,48.088,147.07,146.98,10.7109]
[1642194948614,48.088,147.07,146.98,16.7109]
[1642194950212,48.088,147.07,146.98,16.4509]
[1642194950814,48.088,147.07,146.99,2.72]
[1642194951017,48.088,147.07,146.99,19.1704]
[1642194951520,48.088,147.07,146.99,16.7104]
[1642194952115,48.088,147.07,146.99,28.09117588]
[1642194952816,2.72,147.09,146.99,28.09117588]
[1642194953018,0.26,147.09,146.99,26.3904]
[1642194953444,27.166,147.1,146.99,26.3904]
[1642194953644,27.166,147.1,147.01,10.1992]
[1642194954048,27.166,147.1,147.01,16.7092]
[1642194954647,26.916,147.1,147.01,16.7092]
[1642194956453,27.166,147.1,147.01,16.4492]
[1642194956654,37.366,147.1,147.01,6.25]
[1642194956850,37.116,147.1,147.01,6.25]
[1642194957050,37.376,147.1,147.01,6.25]
[1642194957249,37.116,147.1,147.01,6.25]
[1642194957451,37.116,147.1,147.01,0.25]
[1642194957652,37.116,147.1,147.01,10.1992]
[1642194957853,26.916,147.1,147.01,10.1992]
[1642194958052,26.916,147.1,147.01,16.4492]
[1642194958252,27.166,147.1,147.01,16.7092]
[1642194958455,27.426,147.1,147.01,16.7092]
[1642194958953,27.426,147.1,147.01,16.4492]
[1642194959154,37.6261,147.1,147.01,6.25]
[1642194959552,37.6261,147.1,147.01,6.51]
[1642194959958,37.6261,147.1,147.01,6.25]
[1642194960154,105.5961,147.1,147.01,0.25]
[1642194960354,105.5961,147.1,147.01,6.25]
[1642194960557,105.0961,147.1,147.01,6.25]
[1642194960855,105.0961,147.1,146.98,6.0]
[1642194961055,67.97,147.06,146.97,18.9215]
[1642194961255,2.72,147.05,146.97,6.0]
[1642194961556,2.72,147.05,146.96,15.9958]
[1642194961758,2.72,147.05,146.96,6.0]
[1642194961954,2.72,147.05,146.95,18.9229]
[1642194962155,2.72,147.05,146.95,19.1729]
[1642194962356,35.7673,147.05,146.95,19.1729]
[1642194962556,33.7673,147.05,146.95,19.1729]
[1642194962756,35.7683,147.05,146.95,13.1729]
[1642194964159,35.7683,147.05,146.95,19.1729]
[1642194964591,33.0473,147.05,146.95,19.1729]
[1642194964963,33.3073,147.05,146.95,8.97]
[1642194965361,67.97,147.04,146.95,8.97]
[1642194965561,10.2048,147.03,146.95,8.97]
[1642194966561,33.3077,147.05,146.95,8.97]
[1642194966760,33.0577,147.05,146.95,8.97]
[1642194967360,32.7977,147.05,146.95,8.97]
[1642194967963,67.97,147.04,146.95,8.97]
[1642194968162,33.0477,147.05,146.95,8.97]
[1642194968361,10.2041,147.04,146.95,8.97]
[1642194968764,10.4641,147.04,146.95,8.97]
[1642194968965,25.3203,147.06,146.95,8.98]
[1642194969164,22.5993,147.06,146.95,16.31]
[1642194969467,2.72,147.05,146.95,26.5131]
[1642194969665,22.5993,147.06,146.95,26.5131]
[1642194970468,22.5993,147.06,146.95,26.7631]
[1642194971069,22.8593,147.06,146.95,26.7631]
[1642194971868,22.8593,147.06,146.95,26.5131]
[1642194972997,23.1093,147.06,146.95,26.5131]
[1642194973193,2.72,147.05,146.95,36.1931]
[1642194973595,2.97,147.05,146.95,36.1931]
[1642194973993,2.97,147.05,146.95,36.4431]
[1642194974194,2.97,147.05,146.95,29.1131]
[1642194974594,2.97,147.05,146.95,26.3931]
[1642194975896,3.23,147.05,146.95,26.3931]
[1642194977897,3.23,147.05,146.95,26.1431]
[1642194978597,13.4334,147.05,146.95,15.94]
[1642194979197,67.97,147.04,146.95,15.94]
[1642194979398,2.721,147.03,146.95,16.19]
[1642194979602,2.971,147.03,146.95,16.19]
[1642194980204,2.721,147.03,146.95,16.19]
[1642194980405,2.971,147.03,146.95,16.19]
[1642194983507,3.231,147.03,146.95,16.19]
[1642194984509,2.971,147.03,146.95,16.19]
[1642194985010,2.721,147.03,146.95,16.19]
[1642194986112,2.721,147.03,146.95,26.3932]
[1642194986312,23.472,147.04,146.96,2.721]
[1642194986513,23.472,147.04,146.96,9.231]
[1642194987018,23.732,147.04,146.96,9.231]
[1642194987515,23.732,147.04,146.96,19.4335]
[1642194987713,22.5993,147.06,146.96,19.4335]
[1642194987916,22.5993,147.06,146.96,29.1135]
[1642194989422,23.1093,147.06,146.96,29.1135]
[1642194989622,22.8493,147.06,146.96,57.84538339]
[1642194990218,22.8493,147.06,146.96,29.1135]
[1642194991421,23.1093,147.06,146.96,29.1135]
[1642194992523,23.1093,147.06,146.96,28.8535]
[1642194994723,2.72,147.05,146.96,26.1325]
[1642194995324,26.6454,147.05,146.96,15.93]
[1642194996324,36.8487,147.05,146.96,15.93]
[1642194997126,37.0987,147.05,146.96,15.93]
[1642194997523,26.6454,147.05,146.96,26.1328]
[1642194997727,26.6454,147.05,146.96,26.3928]
[1642194999024,26.9054,147.05,146.96,26.3928]
[1642194999428,26.9054,147.05,146.96,9.68]
[1642194999626,44.3117,147.05,146.93,413.87451739]
[1642194999829,9.68,147.04,146.93,413.87451739]
[1642195000029,2.721,147.03,146.93,411.15451739]
[1642195000232,25.8146,147.03,146.93,411.15451739]
[1642195000427,32.0646,147.03,146.93,411.15451739]
[1642195000827,32.0646,147.03,146.93,411.40451739]
[1642195001128,32.0646,147.03,146.93,417.15451739]
[1642195001531,32.0646,147.03,146.93,6.0]
[1642195002030,32.0646,147.03,146.92,9.57426377]
[1642195002231,32.0646,147.03,146.92,3.57426377]
[1642195002430,10.2055,147.02,146.93,10.2057]
[1642195002833,10.4555,147.02,146.93,16.4557]
[1642195003131,10.4555,147.02,146.93,16.7157]
[1642195003332,10.4555,147.02,146.93,16.2057]
[1642195004234,67.97,147.01,146.92,2.721]
[1642195004433,10.2081,146.99,146.92,2.721]
[1642195004634,2.721,146.98,146.92,2.971]
[1642195004836,0.25,146.98,146.92,2.721]
[1642195005034,2.722,146.97,146.92,2.721]
[1642195005438,2.972,146.97,146.92,2.721]
[1642195005735,0.25,146.97,146.92,2.721]
[1642195006158,0.25,146.97,146.89,3.57426377]
[1642195006361,10.2096,146.96,146.89,19.78286377]
[1642195006562,23.2253,146.99,146.9,2.722]
[1642195006762,23.2253,146.99,146.9,8.588]
[1642195006979,23.2253,146.99,146.9,16.54877588]
[1642195007164,23.2253,146.99,146.9,14.848]
[1642195007361,23.2253,146.99,146.9,15.098]
[1642195007866,23.2253,146.99,146.9,25.3062]
[1642195008261,23.2253,146.99,146.9,27.00697588]
[1642195008663,23.2253,146.99,146.9,25.3062]
[1642195008861,23.4853,146.99,146.9,25.3062]
[1642195011169,23.4853,146.99,146.91,25.55234348]
[1642195011469,23.4853,146.99,146.95,10.205]
[1642195011870,23.4853,146.99,146.95,10.455]
[1642195015873,14.83057446,147.02,146.95,10.455]
[1642195016071,2.721,147.02,146.95,16.715]
[1642195016873,2.721,147.02,146.95,18.65634834]
[1642195017108,2.721,147.03,146.95,18.65634834]
[1642195018478,26.53427446,147.04,146.95,18.65634834]
[1642195019075,26.53427446,147.04,146.96,9.68]
[1642195019276,26.53427446,147.04,147.0,10.2013]
[1642195019475,26.53427446,147.04,147.0,16.4513]
[1642195019678,24.6306,147.04,147.0,16.4513]
[1642195020676,24.6306,147.04,147.0,0.25]
[1642195020875,24.6306,147.04,147.0,6.25]
[1642195021477,24.6306,147.04,147.0,0.25]